bitfinex/quotes_SOLUSD_20250201
["timestamp","ask_amount","ask_price","bid_price","bid_amount"]
[1738417760435,0.063,227.64,227.6,26.16718115]
[1738417760941,0.87251474,227.81,227.69,0.25297526]
[1738417761240,0.87251474,227.78,227.74,12.75533262]
[1738417761542,0.87251474,227.78,227.73,13.41184853]
[1738417761722,0.87251474,227.78,227.73,26.16718115]
[1738417763252,0.87251474,227.78,227.73,13.41184853]
[1738417763447,0.87251474,227.76,227.72,3.68]
[1738417763951,0.87251474,227.76,227.73,13.41184853]
[1738417764447,13.62784736,227.78,227.73,13.41184853]
[1738417764830,0.87251474,227.78,227.73,13.41184853]
[1738417765171,0.87251474,227.78,227.73,26.16718115]
[1738417765731,0.93551474,227.78,227.73,30.55818115]
[1738417765929,0.063,227.78,227.73,30.55818115]
[1738417766957,0.93551474,227.78,227.73,30.55818115]
[1738417767762,0.063,227.78,227.75,26.16718115]
[1738417768260,0.063,227.78,227.75,13.41184853]
[1738417768467,0.93551474,227.78,227.74,4.3908]
[1738417768666,0.063,227.78,227.74,4.3908]
[1738417768832,0.063,227.78,227.74,17.14613262]
[1738417770762,0.063,227.78,227.75,27.79358115]
[1738417771059,0.063,227.78,227.76,17.14583262]
[1738417772054,0.063,227.78,227.77,17.14563262]
[1738417772254,0.063,227.78,227.77,30.55748115]
[1738417773953,0.063,227.78,227.77,13.41184853]
[1738417775446,0.063,227.78,227.75,1.6264]
[1738417775765,12.81833262,227.78,227.72,16.35533262]
[1738417776143,13.62784736,227.76,227.7,14.38173262]
[1738417776355,12.75533262,227.75,227.7,6.0179]
[1738417776736,12.75533262,227.75,227.71,13.41184853]
[1738417777671,13.62784736,227.76,227.71,13.41184853]
[1738417777847,12.75533262,227.75,227.71,13.41184853]
[1738417778248,13.62784736,227.73,227.69,0.03]
[1738417779239,0.87251474,227.73,227.69,0.03]
[1738417780672,13.62784736,227.77,227.7,12.75533262]
[1738417781194,0.87251474,227.77,227.72,12.75533262]
[1738417781489,0.87251474,227.77,227.73,12.75533262]
[1738417782166,0.87251474,227.77,227.69,13.44184853]
[1738417782167,0.87251474,227.77,227.72,12.75533262]
[1738417782679,0.87251474,227.77,227.71,26.16718115]
[1738417783351,0.87251474,227.75,227.71,4.3913]
[1738417783551,0.87251474,227.75,227.71,17.80314853]
[1738417785378,13.62784736,227.75,227.71,17.80314853]
[1738417785875,0.87251474,227.73,227.69,4.4219]
[1738417786658,13.62784736,227.73,227.69,0.03]
[1738417786872,12.75533262,227.72,227.69,0.03]
[1738417787561,13.62784736,227.7,227.69,0.03]
[1738417789784,13.69084736,227.7,227.69,0.03]
[1738417792874,0.063,227.7,227.69,0.03]
[1738417793859,0.93551474,227.7,227.69,0.03]
[1738417796481,13.69084736,227.7,227.69,0.03]
[1738417800668,0.063,227.7,227.69,0.03]
[1738417801287,0.93551474,227.7,227.69,0.03]
[1738417801675,13.69084736,227.7,227.69,0.03]
[1738417801874,26.44617998,227.7,227.69,0.03]
[1738417802589,32.75237998,227.7,227.69,0.03]
[1738417803067,33.576018,227.7,227.69,0.03]
[1738417803268,32.75237998,227.7,227.69,0.03]
[1738417803479,33.57601792,227.7,227.63,0.03]
[1738417803689,13.62784736,227.64,227.63,0.03]
[1738417810297,0.87251474,227.64,227.63,0.03]
[1738417813890,0.87251474,227.66,227.63,0.03]
[1738417814092,0.87251474,227.66,227.63,12.78533262]
[1738417814408,0.93551474,227.7,227.66,13.41184853]
[1738417814596,0.93551474,227.7,227.66,12.75533262]
[1738417815307,0.93551474,227.7,227.66,13.41184853]
[1738417815683,0.93551474,227.7,227.66,17.80424853]
[1738417816986,13.62784736,227.68,227.63,0.03]
[1738417817205,12.75533262,227.67,227.63,0.03]
[1738417817505,12.75533262,227.66,227.63,0.03]
[1738417817682,13.62784736,227.66,227.63,0.03]
[1738417818492,12.75533262,227.65,227.63,0.03]
[1738417819805,13.62784736,227.64,227.63,0.03]
[1738417822909,0.87251474,227.64,227.63,0.03]
[1738417823209,0.87251474,227.66,227.63,0.03]
[1738417823796,13.62784736,227.66,227.63,0.03]
[1738417823986,0.87251474,227.66,227.63,0.03]
[1738417824704,0.87251474,227.68,227.63,12.78533262]
[1738417825007,0.87251474,227.68,227.64,12.75533262]
[1738417825580,0.93551474,227.7,227.67,12.75533262]
[1738417825785,0.93551474,227.7,227.69,21.56383194]
[1738417825786,0.063,227.7,227.69,21.56383194]
[1738417825993,0.063,227.7,227.69,25.95573194]
[1738417826706,0.063,227.7,227.69,29.31573194]
[1738417827682,0.063,227.7,227.69,33.89929514]
[1738417831118,0.063,227.7,227.69,30.53929514]
[1738417831414,0.063,227.7,227.69,33.87929514]
[1738417840238,0.063,227.7,227.69,21.14374853]
[1738417840802,0.063,227.7,227.69,17.80374853]
[1738417842704,0.063,227.7,227.69,17.30374853]
[1738417842911,0.063,227.7,227.69,12.91184853]
[1738417844195,0.063,227.7,227.66,4.8551]
[1738417844413,12.73554661,227.69,227.66,4.3923]
[1738417844705,13.60806135,227.68,227.63,4.423]
[1738417844912,12.73554661,227.67,227.63,0.03]
[1738417845119,13.60806135,227.66,227.63,0.03]
[1738417845427,12.73554661,227.65,227.63,0.03]
[1738417845601,12.73554661,227.64,227.63,0.03]
[1738417845921,13.60806135,227.64,227.63,0.03]
[1738417849730,9.03521593,227.64,227.63,0.03]
[1738417857742,0.87251474,227.64,227.63,0.03]
[1738417859547,9.03521593,227.64,227.63,0.03]
[1738417863651,0.87251474,227.64,227.63,0.03]
[1738417865939,9.03521593,227.64,227.63,0.03]
[1738417871958,15.44280593,227.64,227.63,0.03]
[1738417872131,16.2668225,227.64,227.63,0.03]
[1738417872531,17.36694137,227.64,227.63,0.03]
[1738417873566,16.2668225,227.64,227.63,0.03]
[1738417874060,16.1413325,227.64,227.63,0.03]
[1738417874262,15.31731593,227.64,227.63,0.03]
[1738417875542,0.87251474,227.49,227.46,1.6121]
[1738417876270,0.87251474,227.47,227.46,1.6121]
[1738417877262,0.87251474,227.45,227.42,8.16270119]
[1738417877671,0.87251474,227.45,227.43,8.16270119]
[1738417878171,0.87251474,227.43,227.41,1.6121]
[1738417878370,9.03521593,227.43,227.38,13.41184853]
[1738417878584,0.87251474,227.39,227.35,1.6519]
[1738417879085,0.87251474,227.37,227.35,1.6519]
[1738417879372,0.87251474,227.35,227.31,8.16270119]
[1738417879669,0.87251474,227.35,227.31,4.3991]
[1738417879876,0.87251474,227.35,227.31,17.18015541]
[1738417880265,0.87251474,227.32,227.28,14.43295541]
[1738417880462,0.87251474,227.32,227.28,6.0516]
[1738417880881,0.87251474,227.3,227.28,1.6519]
[1738417881063,0.87251474,227.32,227.29,13.41184853]
[1738417881267,0.87251474,227.32,227.31,12.78105541]
[1738417881446,0.87251474,227.32,227.29,13.41184853]
[1738417881447,0.87251474,227.32,227.3,12.78105541]
[1738417881767,0.87251474,227.32,227.28,14.43295541]
[1738417881970,0.87251474,227.32,227.28,18.83265541]
[1738417882159,0.87251474,227.29,227.28,1.6519]
[1738417882358,0.87251474,227.31,227.28,14.43295541]
[1738417882577,0.87251474,227.29,227.26,12.78105541]
[1738417882746,0.87251474,227.27,227.25,12.78105541]
[1738417882950,0.87251474,227.27,227.26,12.78105541]
[1738417883374,0.87251474,227.31,227.26,26.19290394]
[1738417883562,0.87251474,227.29,227.28,17.18085541]
[1738417883971,0.87251474,227.29,227.28,4.3998]
[1738417884458,0.87251474,227.27,227.26,17.18105541]
[1738417884664,0.87251474,227.27,227.26,4.4]
[1738417885363,0.87251474,227.27,227.26,17.18105541]
[1738417885968,0.87251474,227.27,227.25,12.78105541]
[1738417886480,0.87251474,227.29,227.25,12.78105541]
[1738417886667,0.87251474,227.29,227.26,12.78105541]
[1738417887072,0.87251474,227.27,227.25,12.78105541]
[1738417887255,0.87251474,227.27,227.23,12.78105541]
[1738417887457,0.87251474,227.27,227.24,12.78105541]
[1738417887682,0.87251474,227.27,227.23,12.78105541]
[1738417887869,0.87251474,227.25,227.23,12.78105541]
[1738417888475,0.87251474,227.25,227.24,4.4006]
[1738417889262,0.87251474,227.25,227.21,12.78105541]
[1738417889463,0.82502309,227.33,227.22,4.4008]
[1738417889464,0.87251474,227.23,227.22,4.4008]
[1738417889663,0.87251474,227.23,227.2,12.78105541]
[1738417889664,0.87251474,227.23,227.2,17.18225541]
[1738417890175,0.87251474,227.23,227.2,4.4012]
[1738417890373,0.87251474,227.23,227.2,17.18225541]
[1738417890568,0.87251474,227.23,227.18,1.6532]
[1738417890569,0.87251474,227.23,227.22,12.78105541]
[1738417890968,0.87251474,227.26,227.23,13.41184853]
[1738417891169,0.87251474,227.25,227.2,17.18245541]
[1738417891370,12.78105541,227.27,227.2,17.18245541]
[1738417891371,0.87251474,227.23,227.2,12.78105541]
[1738417891577,0.87251474,227.23,227.19,17.18255541]
[1738417891968,0.87251474,227.23,227.13,3.22]
[1738417891969,0.87251474,227.23,227.18,12.78105541]
[1738417892174,0.87251474,227.21,227.18,12.78105541]
[1738417892383,0.87251474,227.23,227.2,12.78105541]
[1738417892785,0.87251474,227.21,227.19,12.78105541]
[1738417892980,12.78105541,227.27,227.2,12.78105541]
[1738417892981,0.87251474,227.23,227.2,12.78105541]
[1738417893175,0.87251474,227.23,227.21,12.78105541]
[1738417893376,0.87251474,227.23,227.17,4.4018]
[1738417893377,0.87251474,227.23,227.2,12.78105541]
[1738417893584,0.87251474,227.25,227.22,12.78105541]
[1738417893766,0.87251474,227.25,227.23,12.78105541]
[1738417894307,0.87251474,227.27,227.24,26.19290394]
[1738417894592,0.87251474,227.27,227.26,12.78105541]
[1738417894770,0.87251474,227.29,227.26,17.18125541]
[1738417894972,0.87251474,227.29,227.28,12.78105541]
[1738417895169,0.87251474,227.31,227.28,12.78105541]
[1738417895366,0.82492668,227.4,227.3,12.78105541]
[1738417895367,0.87251474,227.33,227.3,12.78105541]
[1738417895577,0.87251474,227.33,227.31,12.78105541]
[1738417895967,0.87251474,227.33,227.32,12.78105541]
[1738417896193,0.87251474,227.35,227.32,12.78105541]
[1738417896493,0.87251474,227.35,227.34,12.78105541]
[1738417897685,0.87251474,227.37,227.34,17.17955541]
[1738417898289,0.87251474,227.37,227.34,4.3985]
[1738417899592,0.87251474,227.33,227.31,12.78105541]
[1738417899795,0.87251474,227.33,227.28,12.78105541]
[1738417899991,0.87251474,227.33,227.29,13.41184853]
[1738417900197,0.87251474,227.33,227.29,26.19290394]
[1738417900768,0.87251474,227.33,227.3,12.78105541]
[1738417901604,0.87251474,227.37,227.33,4.3988]
[1738417901783,0.87251474,227.37,227.34,8.17675479]
[1738417902496,0.87251474,227.37,227.36,8.17675479]
[1738417902702,0.87251474,227.37,227.36,12.57505479]
[1738417903104,0.87251474,227.37,227.36,4.3983]
[1738417903301,0.87251474,227.37,227.32,8.17675479]
[1738417903802,0.87251474,227.37,227.3,3.2]
[1738417903803,0.87251474,227.37,227.34,8.17675479]
[1738417903994,0.87251474,227.31,227.3,8.17675479]
[1738417904192,0.87251474,227.31,227.28,8.17675479]
[1738417904677,0.87251474,227.31,227.29,4.3996]
[1738417904872,0.87251474,227.33,227.3,21.58860332]
[1738417905206,0.87251474,227.37,227.32,8.17675479]
[1738417905390,0.87251474,227.37,227.33,8.17675479]
[1738417905975,0.87251474,227.35,227.33,8.17675479]
[1738417906192,0.87251474,227.35,227.31,8.17675479]
[1738417906379,0.87251474,227.37,227.33,8.17675479]
[1738417907102,0.87251474,227.35,227.33,8.17675479]
[1738417907585,0.87251474,227.37,227.34,17.81044853]
[1738417907797,0.87251474,227.37,227.36,8.17675479]
[1738417907988,0.87251474,227.37,227.34,27.64180332]
[1738417908394,0.87251474,227.37,227.34,19.46504853]
[1738417908594,0.87251474,227.37,227.34,6.0532]
[1738417908895,0.87251474,227.35,227.34,4.3986]
[1738417909397,0.87251474,227.35,227.29,1.6546]
[1738417909398,0.87251474,227.3,227.27,8.17675479]
[1738417909597,20.0,227.34,227.19,8.17675479]
[1738417909598,0.87251474,227.23,227.19,8.17675479]
[1738417909780,0.87251474,227.25,227.2,13.41184853]
[1738417910402,0.87251474,227.25,227.21,8.17675479]
[1738417910610,0.87251474,227.22,227.19,12.57825479]
[1738417911277,0.82488955,227.33,227.22,13.41184853]
[1738417911278,0.87251474,227.25,227.22,13.41184853]
[1738417911475,0.87251474,227.25,227.24,21.58860332]
[1738417911699,0.87251474,227.25,227.24,26.19779453]
[1738417911886,0.87251474,227.25,227.24,12.785946]
[1738417912092,0.87251474,227.23,227.2,12.785946]
[1738417912598,0.87251474,227.23,227.21,13.41184853]
[1738417912806,0.87251474,227.23,227.22,12.785946]
[1738417913720,0.87251474,227.25,227.22,26.19779453]
[1738417914000,0.87251474,227.25,227.23,13.41184853]
[1738417914503,0.87251474,227.25,227.24,12.785946]
[1738417914989,0.87251474,227.25,227.24,17.186546]
[1738417915514,0.87251474,227.29,227.24,30.59839453]
[1738417915710,0.87251474,227.29,227.28,12.785946]
[1738417915893,0.87251474,227.31,227.28,12.785946]
[1738417916086,0.87251474,227.31,227.3,12.785946]
[1738417916486,0.87251474,227.33,227.3,12.785946]
[1738417916714,0.87251474,227.33,227.32,12.785946]
[1738417917004,0.87251474,227.33,227.32,17.184946]
[1738417917208,0.87251474,227.33,227.32,4.399]
[1738417917625,0.87251474,227.33,227.32,17.184946]
[1738417918111,0.87251474,227.36,227.32,30.59679453]
[1738417919206,0.87251474,227.33,227.3,12.785946]
[1738417919890,0.87251474,227.33,227.31,13.41184853]
[1738417920396,0.82476794,227.43,227.31,13.41184853]
[1738417920397,0.87251474,227.35,227.32,17.184946]
[1738417920804,0.87251474,227.33,227.32,17.184946]
[1738417921197,0.87251474,227.33,227.32,4.399]
[1738417921506,0.87251474,227.35,227.32,17.184946]
[1738417921810,0.87251474,227.35,227.33,12.785946]
[1738417922213,0.87251474,227.31,227.28,17.185746]
[1738417922511,0.87251474,227.29,227.26,4.4]
[1738417922706,0.87251474,227.29,227.27,13.41184853]
[1738417922914,0.87251474,227.27,227.25,3.26]
[1738417923287,0.87251474,227.27,227.25,4.4004]
[1738417924592,0.87251474,227.29,227.26,26.19779453]
[1738417924788,0.87251474,227.33,227.29,13.41184853]
[1738417925012,0.87251474,227.33,227.31,12.785946]
[1738417926408,0.87251474,227.35,227.32,17.81084853]
[1738417926716,0.87251474,227.35,227.34,12.785946]
[1738417927815,0.82494799,227.44,227.34,12.785946]
[1738417927816,0.87251474,227.37,227.34,12.785946]
[1738417927999,0.87251474,227.37,227.35,12.785946]
[1738417928312,0.87251474,227.37,227.35,17.184346]
[1738417928508,0.87251474,227.37,227.36,26.19779453]
[1738417928712,1.71049195,227.47,227.36,26.19779453]
[1738417928713,0.87251474,227.39,227.36,26.19779453]
[1738417928910,0.87251474,227.39,227.38,26.19779453]
[1738417929284,0.87251474,227.41,227.38,26.19779453]
[1738417929816,0.87251474,227.41,227.38,30.59549453]
[1738417930015,0.87251474,227.41,227.39,12.785946]
[1738417930212,0.87251474,227.39,227.38,17.80954853]
[1738417930429,0.87251474,227.41,227.39,13.41184853]
[1738417930707,0.87251474,227.41,227.39,17.80944853]
[1738417930916,6.4464,227.5,227.39,30.59539453]
[1738417930917,0.87251474,227.43,227.39,30.59539453]
[1738417931092,0.87251474,227.41,227.4,12.785946]
[1738417931297,0.87251474,227.41,227.4,13.41184853]
[1738417931498,0.87251474,227.43,227.4,13.41184853]
[1738417932016,0.87251474,227.43,227.4,17.80914853]
[1738417932202,0.87251474,227.41,227.4,17.80914853]
[1738417932390,12.785946,227.45,227.4,17.80914853]
[1738417932391,0.87251474,227.43,227.4,17.80914853]
[1738417932592,0.87251474,227.43,227.41,13.41184853]
[1738417932888,0.87251474,227.43,227.41,4.3972]
[1738417934834,0.87251474,227.43,227.42,17.80894853]
[1738417935239,0.87251474,227.43,227.41,13.41184853]
[1738417935595,0.87251474,227.45,227.41,26.19779453]
[1738417936096,0.87251474,227.43,227.41,26.19779453]
[1738417936295,0.87251474,227.43,227.41,17.80904853]
[1738417936496,0.87251474,227.43,227.41,30.59499453]
[1738417937111,0.87251474,227.45,227.41,30.59499453]
[1738417937318,0.87251474,227.43,227.41,30.59499453]
[1738417937515,0.87251474,227.45,227.43,13.41184853]
[1738417937718,0.87251474,227.47,227.45,13.41184853]
[1738417937917,0.87251474,227.47,227.46,26.19779453]
[1738417938309,0.87251474,227.47,227.46,13.41184853]
[1738417938514,0.87251474,227.47,227.46,26.19779453]
[1738417939297,0.87251474,227.47,227.46,13.41184853]
[1738417939515,0.87251474,227.47,227.46,17.80814853]
[1738417940229,0.87251474,227.47,227.41,12.785946]
[1738417940421,0.87251474,227.47,227.42,12.785946]
[1738417940718,0.82418947,227.54,227.37,4.3981]
[1738417940719,0.87251474,227.45,227.39,12.785946]
[1738417940899,0.87251474,227.45,227.4,3.2]
[1738417941537,0.87251474,227.45,227.41,13.41184853]
[1738417941823,0.87251474,227.45,227.41,17.80914853]
[1738417942038,0.87251474,227.42,227.39,3.2]
[1738417942213,0.87251474,227.42,227.4,13.41184853]
[1738417943225,13.65846074,227.44,227.4,17.80924853]
[1738417943420,0.87251474,227.42,227.4,17.80924853]
[1738417944253,0.87251474,227.4,227.35,12.785946]
[1738417944525,0.87251474,227.38,227.32,12.785946]
[1738417944708,0.87251474,227.38,227.32,13.41184853]
[1738417944905,0.87251474,227.34,227.32,13.41184853]
[1738417945503,0.87251474,227.34,227.3,4.3994]
[1738417945819,0.87251474,227.34,227.31,13.41184853]
[1738417947051,0.87251474,227.34,227.31,17.81104853]
[1738417949314,0.87251474,227.32,227.25,12.785946]
[1738417949514,0.87251474,227.3,227.26,3.18]
[1738417949711,0.87251474,227.28,227.26,4.4002]
[1738417950521,0.87251474,227.28,227.27,13.41184853]
[1738417950715,0.87251474,227.3,227.27,17.81184853]
[1738417950917,0.87251474,227.32,227.29,12.785946]
[1738417952130,0.87251474,227.34,227.31,26.19779453]
[1738417953131,0.87251474,227.34,227.31,13.41184853]
[1738417953314,0.87251474,227.34,227.31,17.81094853]
[1738417953518,0.87251474,227.34,227.31,30.59689453]
[1738417960043,1.08340325,227.5,227.18,12.785946]
[1738417960044,0.87251474,227.22,227.18,12.785946]
[1738417960222,0.87251474,227.23,227.18,12.785946]
[1738417960713,0.87251474,227.23,227.21,13.41184853]
[1738417960918,0.87251474,227.25,227.21,13.41184853]
[1738417961822,0.87251474,227.27,227.25,13.41184853]
[1738417964343,0.87251474,227.27,227.24,13.41184853]
[1738417964640,0.87251474,227.23,227.21,3.24]
[1738417965146,0.87251474,227.23,227.22,13.41184853]
[1738417965351,0.87251474,227.23,227.18,4.4016]
[1738417965640,0.87251474,227.21,227.17,12.785946]
[1738417965935,0.87251474,227.19,227.15,12.785946]
[1738417966138,0.87251474,227.19,227.17,3.22]
[1738417966340,0.87251474,227.19,227.18,13.41184853]
[1738417967137,0.87251474,227.21,227.18,26.19779453]
[1738417967343,0.87251474,227.19,227.18,13.41184853]
[1738417968245,0.87251474,227.21,227.18,26.19779453]
[1738417968438,0.87251474,227.21,227.19,3.22]
[1738417968622,0.87251474,227.21,227.19,16.005946]
[1738417969015,0.87251474,227.21,227.19,20.407446]
[1738417969236,0.87251474,227.23,227.2,26.19779453]
[1738417969441,0.87251474,227.25,227.22,12.785946]
[1738417970446,0.87251474,227.27,227.24,26.19779453]
[1738417970646,0.87251474,227.27,227.25,12.785946]
[1738417971236,0.87251474,227.27,227.24,26.19779453]
[1738417972145,0.87251474,227.27,227.25,26.19779453]
[1738417972441,0.87251474,227.27,227.26,12.785946]
[1738417972851,0.87251474,227.27,227.25,26.19779453]
[1738417973148,0.87251474,227.27,227.25,13.41184853]
[1738417974534,0.87251474,227.25,227.24,4.4005]
[1738417974922,0.87251474,227.25,227.24,30.59829453]
[1738417976835,0.87251474,227.27,227.25,13.41184853]
[1738417977026,0.87251474,227.27,227.26,12.785946]
[1738417977421,0.87251474,227.27,227.26,26.19779453]
[1738417977627,0.87251474,227.29,227.27,13.41184853]
[1738417977850,0.87251474,227.29,227.28,26.19779453]
[1738417979049,12.785946,227.37,227.28,30.59759453]
[1738417979050,0.87251474,227.33,227.28,30.59759453]
[1738417979231,0.87251474,227.33,227.32,12.785946]
[1738417979433,0.87251474,227.35,227.32,29.39779453]
[1738417980245,0.87251474,227.35,227.32,33.79669453]
[1738417980455,0.87251474,227.33,227.32,13.41184853]
[1738417980635,0.87251474,227.33,227.32,16.61184853]
[1738417980951,0.87251474,227.35,227.32,16.61184853]
[1738417981940,0.87251474,227.35,227.32,29.39779453]
[1738417982251,0.87251474,227.35,227.33,17.184646]
[1738417982746,0.87251474,227.35,227.34,13.41184853]
[1738417982925,0.87251474,227.35,227.34,26.19779453]
[1738417983449,0.87251474,227.39,227.34,26.19779453]
[1738417983649,0.87251474,227.39,227.37,13.41184853]
[1738417983951,0.87251474,227.41,227.39,13.41184853]
[1738417984142,0.87251474,227.43,227.39,13.41184853]
[1738417984846,0.87251474,227.43,227.4,12.785946]
[1738417985050,0.87251474,227.45,227.43,13.41184853]
[1738417985381,0.87251474,227.47,227.44,3.2]
[1738417985852,0.87251474,227.47,227.45,13.41184853]
[1738417986444,0.87251474,227.49,227.45,26.19779453]
[1738417986654,0.87251474,227.51,227.47,13.41184853]
[1738417986856,0.87251474,227.51,227.47,26.19779453]
[1738417987074,0.87251474,227.55,227.51,13.41184853]
[1738417987243,0.87251474,227.55,227.54,12.785946]
[1738417987433,0.87251474,227.55,227.54,26.19779453]
[1738417987633,0.87251474,227.57,227.55,13.41184853]
[1738417987839,0.87251474,227.59,227.56,29.37779453]
[1738417988055,0.87251474,227.59,227.57,26.19779453]
[1738417988260,0.87251474,227.59,227.57,13.41184853]
[1738417988654,0.87251474,227.59,227.57,26.19779453]
[1738417988966,0.87251474,227.61,227.59,13.41184853]
[1738417989264,0.87251474,227.57,227.54,1.5379]
[1738417989442,0.87251474,227.57,227.55,3.18]
[1738417989639,17.86674032,227.63,227.49,1.5379]
[1738417989640,0.87251474,227.52,227.49,1.5379]
[1738417989838,0.87251474,227.52,227.5,3.18]
[1738417990060,0.87251474,227.52,227.51,13.41184853]
[1738417990768,0.87251474,227.54,227.51,26.19779453]
[1738417992157,0.87251474,227.52,227.51,13.41184853]
[1738417993260,0.87251474,227.55,227.51,26.19779453]
[1738417993469,0.87251474,227.57,227.53,12.785946]
[1738417993649,0.87251474,227.57,227.55,12.785946]
[1738417993870,0.87251474,227.59,227.56,33.8149695]
[1738417994153,0.87251474,227.57,227.56,13.41184853]
[1738417995864,0.87251474,227.57,227.53,4.3948]
[1738417996054,0.87251474,227.55,227.51,24.79842097]
[1738417996248,0.87251474,227.55,227.52,13.41184853]
[1738417997152,0.87251474,227.53,227.49,24.79872097]
[1738417997352,0.87251474,227.53,227.5,3.16]
[1738417997568,21.27563571,227.53,227.51,13.41184853]
[1738417998070,0.87251474,227.53,227.51,13.41184853]
[1738417999173,0.87251474,227.53,227.51,38.2103695]
[1738417999351,0.87251474,227.53,227.51,13.41184853]
[1738418000172,0.87251474,227.53,227.51,33.8149695]
[1738418000357,0.87251474,227.53,227.51,13.41184853]
[1738418000772,0.87251474,227.53,227.52,33.8149695]
[1738418000972,0.87251474,227.55,227.53,13.41184853]
[1738418001271,0.87251474,227.53,227.52,13.41184853]
[1738418001659,0.87251474,227.51,227.5,3.16]
[1738418002263,0.87251474,227.51,227.5,16.57184853]
[1738418002656,0.74875205,227.51,227.5,16.57184853]
[1738418003177,0.74875205,227.49,227.44,20.40312097]
[1738418003480,0.74875205,227.47,227.45,3.16]
[1738418004062,0.74875205,227.47,227.46,16.57184853]
[1738418004283,0.74875205,227.47,227.46,3.16]
[1738418004458,21.15187302,227.47,227.46,3.16]
[1738418005087,21.15187302,227.47,227.4,13.41184853]
[1738418005272,20.40312097,227.46,227.43,13.41184853]
[1738418005580,0.74875205,227.44,227.43,13.41184853]
[1738418007180,0.74875205,227.44,227.42,20.40312097]
[1738418007361,0.74875205,227.42,227.39,20.40312097]
[1738418007564,0.74875205,227.42,227.4,3.14]
[1738418008178,0.74875205,227.42,227.38,13.41184853]
[1738418008383,0.74875205,227.42,227.38,16.55184853]
[1738418008584,0.74875205,227.4,227.38,20.94974853]
[1738418008962,0.74875205,227.4,227.38,41.3528695]
[1738418009689,0.74875205,227.42,227.39,33.8149695]
[1738418009871,0.74875205,227.42,227.4,13.41184853]
[1738418010278,0.74875205,227.4,227.39,16.55184853]
[1738418010463,0.74875205,227.4,227.39,36.9549695]
[1738418010665,0.74875205,227.42,227.39,36.9549695]
[1738418010872,0.74875205,227.42,227.4,20.40312097]
[1738418011070,0.74875205,227.42,227.39,41.3526695]
[1738418011271,0.74875205,227.42,227.39,36.9549695]
[1738418011585,0.74875205,227.42,227.41,13.41184853]
[1738418011882,0.74875205,227.42,227.41,33.8149695]
[1738418012077,0.74875205,227.42,227.41,13.41184853]
[1738418012481,0.74875205,227.4,227.39,23.54312097]
[1738418012685,0.74875205,227.4,227.39,3.14]
[1738418014164,0.74875205,227.4,227.39,16.55184853]
[1738418014487,0.74875205,227.4,227.39,13.41184853]
[1738418015191,0.74875205,227.4,227.39,26.18424746]
[1738418016467,0.74875205,227.4,227.39,30.58194746]
[1738418016668,0.74875205,227.42,227.4,13.41184853]
[1738418016871,0.74875205,227.42,227.4,26.18424746]
[1738418017071,0.74875205,227.42,227.41,12.77239893]
[1738418017588,0.74875205,227.42,227.4,26.18424746]
[1738418018991,0.74875205,227.42,227.4,30.58174746]
[1738418019292,0.74875205,227.42,227.41,12.77239893]
[1738418019490,0.74875205,227.44,227.41,12.77239893]
[1738418019784,18.97489893,227.49,227.33,12.77239893]
[1738418019785,0.74875205,227.39,227.33,12.77239893]
[1738418019989,0.74875205,227.39,227.35,13.41184853]
[1738418020195,0.74875205,227.39,227.37,13.41184853]
[1738418022977,0.74875205,227.39,227.37,16.53184853]
[1738418024779,0.74875205,227.39,227.37,13.41184853]
[1738418024982,0.74875205,227.39,227.37,16.53184853]
[1738418029094,0.74875205,227.39,227.34,12.77239893]
[1738418029298,0.74875205,227.37,227.35,3.1]
[1738418030382,0.74875205,227.37,227.36,13.41184853]
[1738418034704,0.74875205,227.39,227.36,30.58254746]
[1738418034887,0.74875205,227.39,227.38,12.77239893]
[1738418035086,0.74875205,227.39,227.37,12.77239893]
[1738418036210,0.74875205,227.39,227.36,30.58254746]
[1738418036505,0.74875205,227.37,227.36,13.41184853]
[1738418042686,0.74875205,227.39,227.36,30.58254746]
[1738418043896,0.74875205,227.39,227.36,17.81014853]
[1738418044595,0.74875205,227.37,227.36,13.41184853]
[1738418046509,0.74875205,227.35,227.34,13.41184853]
[1738418046711,0.74875205,227.35,227.34,16.49184853]
[1738418046924,0.74875205,227.37,227.34,33.66284746]
[1738418047287,0.74875205,227.37,227.35,12.77239893]
[1738418047492,0.74875205,227.37,227.34,33.66284746]
[1738418048312,0.74875205,227.37,227.34,20.89044853]
[1738418049616,0.74875205,227.37,227.34,33.66284746]
[1738418050215,0.39762813,227.37,227.34,33.66284746]
[1738418050520,0.39762813,227.33,227.3,5.8999]
[1738418050702,0.39762813,227.33,227.31,16.49184853]
[1738418051312,0.39762813,227.33,227.31,13.41184853]
[1738418051716,0.39762813,227.29,227.25,12.77239893]
[1738418051894,0.39762813,227.29,227.26,3.08]